Workbook

Sheet Imperfezioni di lavorazione
C3: Grafico di controllo per la stampa di libri | H3: Nome dell'impianto: | J3: Nod Publishers
H4: Data del report: | J4: =TODAY() -> 2023-05-11
H5: Tecnico del controllo qualità: | J5: Nicole Wagner
H6: Reparto: | J6: Controllo qualità
H7: ID attrezzature: | J7: 78910
H8: Data di inizio: | J8: =TODAY()-30 -> 2023-04-11
H9: Data di fine: | J9: =TODAY() -> 2023-05-11
D11: N. di imperfezioni
C12: Data | D12: Campione 1 | E12: Campione 2 | F12: Campione 3 | G12: Campione 4 | H12: Campione 5 | I12: Media | J12: Media campione (media di tutte le medie)
C13: =J8 -> 2023-04-11 | D13: 0 | E13: 3 | F13: 2 | G13: 5 | H13: 4 | I13: =AVERAGE(Dati[[#This Row],[Campione 1]:[Campione 5]]) -> 2.8 | J13: =AVERAGE($I$14:$I$30) -> 2.4
C14: =C13+1 -> 2023-04-12 | D14: 2 | E14: 3 | F14: 1 | G14: 3 | H14: 1 | I14: =AVERAGE(Dati[[#This Row],[Campione 1]:[Campione 5]]) -> 2.0 | J14: 2.4
C15: =C14+1 -> 2023-04-13 | D15: 3 | E15: 4 | F15: 2 | G15: 3 | H15: 0 | I15: =AVERAGE(Dati[[#This Row],[Campione 1]:[Campione 5]]) -> 2.4 | J15: 2.4
C16: 2023-04-14 | D16: 5 | E16: 5 | F16: 4 | G16: 2 | H16: 5 | I16: =AVERAGE(Dati[[#This Row],[Campione 1]:[Campione 5]]) -> 4.2 | J16: 2.4
C17: 2023-04-15 | D17: 2 | E17: 0 | F17: 2 | G17: 1 | H17: 2 | I17: =AVERAGE(Dati[[#This Row],[Campione 1]:[Campione 5]]) -> 1.4 | J17: 2.4
C18: 2023-04-16 | D18: 4 | E18: 3 | F18: 4 | G18: 0 | H18: 3 | I18: =AVERAGE(Dati[[#This Row],[Campione 1]:[Campione 5]]) -> 2.8 | J18: 2.4
C19: 2023-04-17 | D19: 3 | E19: 5 | F19: 4 | G19: 4 | H19: 3 | I19: =AVERAGE(Dati[[#This Row],[Campione 1]:[Campione 5]]) -> 3.8 | J19: 2.4
C20: =C19+1 -> 2023-04-18 | D20: 3 | E20: 1 | F20: 3 | G20: 5 | H20: 5 | I20: =AVERAGE(Dati[[#This Row],[Campione 1]:[Campione 5]]) -> 3.4 | J20: 2.4
C21: 2023-04-19 | D21: 1 | E21: 3 | F21: 1 | G21: 4 | H21: 4 | I21: =AVERAGE(Dati[[#This Row],[Campione 1]:[Campione 5]]) -> 2.6 | J21: 2.4
C22: 2023-04-20 | D22: 0 | E22: 4 | F22: 4 | G22: 3 | H22: 5 | I22: =AVERAGE(Dati[[#This Row],[Campione 1]:[Campione 5]]) -> 3.2 | J22: 2.4
C23: =C22+1 -> 2023-04-21 | D23: 5 | E23: 0 | F23: 0 | G23: 4 | H23: 2 | I23: =AVERAGE(Dati[[#This Row],[Campione 1]:[Campione 5]]) -> 2.2 | J23: 2.4
C24: 2023-04-22 | D24: 2 | E24: 3 | F24: 1 | G24: 2 | H24: 0 | I24: =AVERAGE(Dati[[#This Row],[Campione 1]:[Campione 5]]) -> 1.6 | J24: 2.4
C25: 2023-04-23 | D25: 3 | E25: 0 | F25: 1 | G25: 2 | H25: 1 | I25: =AVERAGE(Dati[[#This Row],[Campione 1]:[Campione 5]]) -> 1.4 | J25: 2.4
C26: 2023-04-24 | D26: 3 | E26: 1 | F26: 3 | G26: 0 | H26: 0 | I26: =AVERAGE(Dati[[#This Row],[Campione 1]:[Campione 5]]) -> 1.4 | J26: 2.4
C27: 2023-04-25 | D27: 1 | E27: 5 | F27: 4 | G27: 1 | H27: 1 | I27: =AVERAGE(Dati[[#This Row],[Campione 1]:[Campione 5]]) -> 2.4 | J27: 2.4
C28: =C27+2 -> 2023-04-27 | D28: 3 | E28: 0 | F28: 3 | G28: 2 | H28: 0 | I28: =AVERAGE(Dati[[#This Row],[Campione 1]:[Campione 5]]) -> 1.6 | J28: 2.4
C29: =C28+2 -> 2023-04-29 | D29: 3 | E29: 4 | F29: 1 | G29: 2 | H29: 3 | I29: =AVERAGE(Dati[[#This Row],[Campione 1]:[Campione 5]]) -> 2.6 | J29: 2.4
C30: 2023-05-01 | D30: 2 | E30: 3 | F30: 1 | G30: 2 | H30: 4 | I30: =AVERAGE(Dati[[#This Row],[Campione 1]:[Campione 5]]) -> 2.4 | J30: 2.4
